[Event "Late-Titled-Tuesday-Blitz-May-07-2024"]
[Site "Chess.com"]
[Date "2024.05.07"]
[Round "10"]
[White "Mikhal867"]
[Black "nochewycandy"]
[Result "0-1"]
[WhiteElo "2530"]
[BlackElo "2764"]
[TimeControl "180+1"]
[EndTime "15:55:59 PDT"]
[Termination "nochewycandy won on time"]

1. d4 {[%clk 0:03:00.9]} 1... d5 {[%clk 0:02:53.5]} 2. c4 {[%clk 0:03:00.3]}
2... e6 {[%clk 0:02:54.4]} 3. Nf3 {[%clk 0:02:59.7]} 3... Nf6 {[%clk 0:02:54.2]}
4. g3 {[%clk 0:02:59.5]} 4... g6 {[%clk 0:02:51.6]} 5. Bg2 {[%clk 0:02:57.9]}
5... Bg7 {[%clk 0:02:52.3]} 6. O-O {[%clk 0:02:57.4]} 6... O-O {[%clk 0:02:53]}
7. Nc3 {[%clk 0:02:56.9]} 7... Nc6 {[%clk 0:02:49.9]} 8. b3 {[%clk 0:02:49.8]}
8... Qe7 {[%clk 0:02:48.9]} 9. Nb5 {[%clk 0:02:42.4]} 9... a6 {[%clk 0:02:47.3]}
10. Ba3 {[%clk 0:02:41.6]} 10... Nb4 {[%clk 0:02:44.3]} 11. Nxc7 {[%clk
0:02:31.6]} 11... Qxc7 {[%clk 0:02:45.2]} 12. Bxb4 {[%clk 0:02:31]} 12... Rd8
{[%clk 0:02:45.7]} 13. Rc1 {[%clk 0:02:18.4]} 13... Qb6 {[%clk 0:02:39.9]} 14.
Bc5 {[%clk 0:02:15.7]} 14... Qa5 {[%clk 0:02:40]} 15. Qd2 {[%clk 0:02:06.4]}
15... Qxd2 {[%clk 0:02:38.1]} 16. Nxd2 {[%clk 0:02:06.2]} 16... dxc4 {[%clk
0:02:38.8]} 17. Nxc4 {[%clk 0:02:02.6]} 17... Nd7 {[%clk 0:02:38.8]} 18. Bb6
{[%clk 0:01:42.9]} 18... Nxb6 {[%clk 0:02:34.6]} 19. Nxb6 {[%clk 0:01:42.6]}
19... Rb8 {[%clk 0:02:35.5]} 20. e3 {[%clk 0:01:40.7]} 20... Bd7 {[%clk
0:02:34.1]} 21. Rc7 {[%clk 0:01:35.9]} 21... Bb5 {[%clk 0:02:33.8]} 22. Rfc1
{[%clk 0:01:35.6]} 22... e5 {[%clk 0:02:34]} 23. d5 {[%clk 0:01:26.7]} 23... Bf8
{[%clk 0:02:34.6]} 24. Bf1 {[%clk 0:01:17.5]} 24... Be8 {[%clk 0:02:32.8]} 25.
e4 {[%clk 0:01:07.4]} 25... Bb4 {[%clk 0:02:32.5]} 26. Rc8 {[%clk 0:00:54.8]}
26... Rbxc8 {[%clk 0:02:23.5]} 27. Rxc8 {[%clk 0:00:54.6]} 27... Rxc8 {[%clk
0:02:23.9]} 28. Nxc8 {[%clk 0:00:54.9]} 28... Bc5 {[%clk 0:02:22.8]} 29. Bh3
{[%clk 0:00:44.8]} 29... f5 {[%clk 0:02:03.9]} 30. d6 {[%clk 0:00:32.7]} 30...
Kf8 {[%clk 0:02:03.5]} 31. exf5 {[%clk 0:00:30.7]} 31... Bd7 {[%clk 0:02:03.4]}
32. Ne7 {[%clk 0:00:19.9]} 32... Bxd6 {[%clk 0:02:00.3]} 33. Nd5 {[%clk
0:00:19.7]} 33... gxf5 {[%clk 0:02:00.1]} 34. Nf6 {[%clk 0:00:20]} 34... Be6
{[%clk 0:01:55.7]} 35. Nxh7+ {[%clk 0:00:19.8]} 35... Ke7 {[%clk 0:01:56.4]} 36.
Ng5 {[%clk 0:00:19.8]} 36... Bd7 {[%clk 0:01:57.1]} 37. Kg2 {[%clk 0:00:18.5]}
37... Kf6 {[%clk 0:01:50.6]} 38. f4 {[%clk 0:00:12.8]} 38... exf4 {[%clk
0:01:50.3]} 39. gxf4 {[%clk 0:00:13.2]} 39... Bxf4 {[%clk 0:01:51.2]} 40. Nf3
{[%clk 0:00:12.2]} 40... Bc6 {[%clk 0:01:51.5]} 41. Kf2 {[%clk 0:00:12.6]} 41...
Be4 {[%clk 0:01:51]} 42. Bf1 {[%clk 0:00:12.5]} 42... Bd6 {[%clk 0:01:49.4]} 43.
Ke3 {[%clk 0:00:11.3]} 43... a5 {[%clk 0:01:44.2]} 44. Nd2 {[%clk 0:00:10.3]}
44... Bc6 {[%clk 0:01:41.4]} 45. h3 {[%clk 0:00:10.4]} 45... Bc5+ {[%clk
0:01:38.6]} 46. Kd3 {[%clk 0:00:09.3]} 46... b6 {[%clk 0:01:35.8]} 47. Nc4
{[%clk 0:00:08.9]} 47... Kg5 {[%clk 0:01:33.2]} 48. Ke2 {[%clk 0:00:07.9]} 48...
Kf4 {[%clk 0:01:32.3]} 49. Kd2 {[%clk 0:00:07.2]} 49... Kg3 {[%clk 0:01:32.1]}
50. Bd3 {[%clk 0:00:07.1]} 50... f4 {[%clk 0:01:32.3]} 51. Ke1 {[%clk
0:00:06.2]} 51... f3 {[%clk 0:01:29.6]} 52. Ne5 {[%clk 0:00:05.9]} 52... f2+
{[%clk 0:01:29.5]} 53. Kd2 {[%clk 0:00:04.4]} 53... Bg2 {[%clk 0:01:28.7]} 54.
h4 {[%clk 0:00:03.2]} 54... Kxh4 {[%clk 0:01:29]} 0-1

[Event "Late-Titled-Tuesday-Blitz-May-07-2024"]
[Site "Chess.com"]
[Date "2024.05.07"]
[Round "10"]
[White "hsd2016"]
[Black "cycygogne"]
[Result "1-0"]
[WhiteElo "2361"]
[BlackElo "2176"]
[TimeControl "180+1"]
[EndTime "15:56:01 PDT"]
[Termination "hsd2016 won by checkmate"]

1. e4 {[%clk 0:03:00.9]} 1... d5 {[%clk 0:02:35.7]} 2. exd5 {[%clk 0:03:00.8]}
2... Qxd5 {[%clk 0:02:35]} 3. Nc3 {[%clk 0:03:00.8]} 3... Qd6 {[%clk 0:02:35.2]}
4. d4 {[%clk 0:03:00.7]} 4... Nf6 {[%clk 0:02:34.6]} 5. Nf3 {[%clk 0:02:56.2]}
5... Bg4 {[%clk 0:02:34.2]} 6. h3 {[%clk 0:02:55.5]} 6... Bh5 {[%clk 0:02:33.9]}
7. g4 {[%clk 0:02:51.1]} 7... Bg6 {[%clk 0:02:33.9]} 8. Ne5 {[%clk 0:02:51.3]}
8... Nc6 {[%clk 0:02:27.3]} 9. Bf4 {[%clk 0:02:41.6]} 9... Qxd4 {[%clk
0:02:07.1]} 10. Nxc6 {[%clk 0:02:40.3]} 10... Qxf4 {[%clk 0:01:43.8]} 11. Bg2
{[%clk 0:02:39.8]} 11... e6 {[%clk 0:01:26.7]} 12. Ne2 {[%clk 0:02:28.9]} 12...
Qa4 {[%clk 0:01:13.6]} 13. Ncd4 {[%clk 0:02:27.3]} 13... O-O-O {[%clk
0:01:01.9]} 14. b3 {[%clk 0:02:06.3]} 14... Qa5+ {[%clk 0:00:58.9]} 15. c3
{[%clk 0:01:57.7]} 15... e5 {[%clk 0:00:52.8]} 16. b4 {[%clk 0:01:57.4]} 16...
Qb6 {[%clk 0:00:45.1]} 17. O-O {[%clk 0:01:56.6]} 17... exd4 {[%clk 0:00:45.2]}
18. cxd4 {[%clk 0:01:57.5]} 18... Be4 {[%clk 0:00:36.1]} 19. f3 {[%clk 0:01:55]}
19... Bd5 {[%clk 0:00:34.7]} 20. a3 {[%clk 0:01:52.1]} 20... Bd6 {[%clk
0:00:30.3]} 21. Nc3 {[%clk 0:01:49.2]} 21... Bc4 {[%clk 0:00:27.6]} 22. Qd2
{[%clk 0:01:42.6]} 22... Rhe8 {[%clk 0:00:20.4]} 23. Rfd1 {[%clk 0:01:40.7]}
23... a6 {[%clk 0:00:18]} 24. Rac1 {[%clk 0:01:38.5]} 24... Nd5 {[%clk
0:00:17.6]} 25. Na4 {[%clk 0:01:37.1]} 25... Qb5 {[%clk 0:00:17.9]} 26. Nb2
{[%clk 0:01:32.6]} 26... Bb3 {[%clk 0:00:17.6]} 27. Bf1 {[%clk 0:01:31]} 27...
Qb6 {[%clk 0:00:16.2]} 28. Nc4 {[%clk 0:01:29.4]} 28... Bxc4 {[%clk 0:00:15.5]}
29. Bxc4 {[%clk 0:01:30.3]} 29... Bf4 {[%clk 0:00:15.8]} 30. Qc2 {[%clk
0:01:26.1]} 30... Ne3 {[%clk 0:00:15.7]} 31. Qb3 {[%clk 0:01:21]} 31... Nxd1
{[%clk 0:00:15.6]} 32. Rxd1 {[%clk 0:01:21.9]} 32... Be3+ {[%clk 0:00:15.3]} 33.
Kg2 {[%clk 0:01:21.8]} 33... Bxd4 {[%clk 0:00:15.9]} 34. Bxf7 {[%clk 0:01:21.8]}
34... Rf8 {[%clk 0:00:15.4]} 35. Be6+ {[%clk 0:01:22.1]} 35... Kb8 {[%clk
0:00:15.8]} 36. Bf5 {[%clk 0:01:18.9]} 36... Rde8 {[%clk 0:00:15.3]} 37. Be4
{[%clk 0:01:19.3]} 37... Rd8 {[%clk 0:00:15.1]} 38. Rc1 {[%clk 0:01:17.4]} 38...
c6 {[%clk 0:00:14.3]} 39. Qe6 {[%clk 0:01:16.6]} 39... Qc7 {[%clk 0:00:14.3]}
40. Rc4 {[%clk 0:01:15.3]} 40... Qf4 {[%clk 0:00:13.5]} 41. Rc2 {[%clk
0:01:09.4]} 41... Be3 {[%clk 0:00:12.8]} 42. Rxc6 {[%clk 0:01:02.1]} 42... bxc6
{[%clk 0:00:11]} 43. Qxc6 {[%clk 0:01:03]} 43... Rd2+ {[%clk 0:00:11.2]} 44. Kf1
{[%clk 0:01:03.2]} 44... Rf2+ {[%clk 0:00:10.9]} 45. Ke1 {[%clk 0:01:02]} 45...
Qc7 {[%clk 0:00:10.8]} 46. Qa8# {[%clk 0:01:01.7]} 1-0

[Event "Late-Titled-Tuesday-Blitz-May-07-2024"]
[Site "Chess.com"]
[Date "2024.05.07"]
[Round "10"]
[White "Sanan_Sjugirov"]
[Black "stollenmonster"]
[Result "1-0"]
[WhiteElo "3030"]
[BlackElo "2872"]
[TimeControl "180+1"]
[EndTime "15:56:02 PDT"]
[Termination "Sanan_Sjugirov won by resignation"]

1. e4 {[%clk 0:03:00.9]} 1... c5 {[%clk 0:02:59.2]} 2. Nf3 {[%clk 0:03:00.8]}
2... Nf6 {[%clk 0:02:58.8]} 3. e5 {[%clk 0:02:59.4]} 3... Nd5 {[%clk 0:02:59.4]}
4. Nc3 {[%clk 0:03:00]} 4... e6 {[%clk 0:02:59.6]} 5. Ne4 {[%clk 0:03:00]} 5...
Nc6 {[%clk 0:03:00]} 6. Bb5 {[%clk 0:02:50.8]} 6... f5 {[%clk 0:02:59.7]} 7. Nc3
{[%clk 0:02:48.9]} 7... Nde7 {[%clk 0:02:59.8]} 8. O-O {[%clk 0:02:37.1]} 8...
Nd4 {[%clk 0:02:59.5]} 9. Re1 {[%clk 0:02:19.7]} 9... Ng6 {[%clk 0:02:55]} 10.
Bf1 {[%clk 0:02:19.6]} 10... Nxf3+ {[%clk 0:02:46.6]} 11. Qxf3 {[%clk
0:02:19.4]} 11... Qc7 {[%clk 0:02:47.4]} 12. Nb5 {[%clk 0:02:17.3]} 12... Qb8
{[%clk 0:02:46.8]} 13. d4 {[%clk 0:02:14.8]} 13... cxd4 {[%clk 0:02:43.6]} 14.
Bf4 {[%clk 0:02:05.3]} 14... Bc5 {[%clk 0:02:32.5]} 15. Rad1 {[%clk 0:02:01.8]}
15... O-O {[%clk 0:02:32.6]} 16. a3 {[%clk 0:01:44.6]} 16... a5 {[%clk
0:02:26.5]} 17. Nxd4 {[%clk 0:01:36.9]} 17... b6 {[%clk 0:02:25.4]} 18. Qg3
{[%clk 0:01:28.4]} 18... Bb7 {[%clk 0:02:21.4]} 19. Nb5 {[%clk 0:01:22.4]} 19...
Bc6 {[%clk 0:02:01.1]} 20. Nd6 {[%clk 0:01:22.4]} 20... Nxf4 {[%clk 0:01:59.4]}
21. Qxf4 {[%clk 0:01:22.2]} 21... Qd8 {[%clk 0:01:53.6]} 22. b4 {[%clk 0:01:18]}
22... axb4 {[%clk 0:01:54.1]} 23. axb4 {[%clk 0:01:18.9]} 23... g5 {[%clk
0:01:53.9]} 24. Qd2 {[%clk 0:01:15.6]} 24... Bxd6 {[%clk 0:01:52.2]} 25. Qxd6
{[%clk 0:01:16.5]} 25... Ra4 {[%clk 0:01:33.4]} 26. b5 {[%clk 0:01:13.6]} 26...
Bd5 {[%clk 0:01:31.7]} 27. Ra1 {[%clk 0:00:48.8]} 27... Rg4 {[%clk 0:01:15]} 28.
Ra7 {[%clk 0:00:34.5]} 28... Rf7 {[%clk 0:01:13.4]} 29. Rea1 {[%clk 0:00:24.3]}
29... Kg7 {[%clk 0:01:05.1]} 30. Rc7 {[%clk 0:00:15.3]} 30... f4 {[%clk
0:00:53.5]} 31. h3 {[%clk 0:00:15]} 31... Rh4 {[%clk 0:00:50]} 32. Raa7 {[%clk
0:00:15]} 32... Qe8 {[%clk 0:00:37.4]} 33. Rxd7 {[%clk 0:00:15.2]} 33... Rxd7
{[%clk 0:00:38.1]} 34. Rxd7+ {[%clk 0:00:16.1]} 34... Kg6 {[%clk 0:00:38.4]} 35.
Bd3+ {[%clk 0:00:15.2]} 1-0

[Event "Late-Titled-Tuesday-Blitz-May-07-2024"]
[Site "Chess.com"]
[Date "2024.05.07"]
[Round "10"]
[White "Seppppppy"]
[Black "Flaccidmoves"]
[Result "0-1"]
[WhiteElo "2196"]
[BlackElo "2376"]
[TimeControl "180+1"]
[EndTime "15:56:03 PDT"]
[Termination "Flaccidmoves won on time"]

1. e4 {[%clk 0:02:39.6]} 1... c6 {[%clk 0:02:56.8]} 2. d4 {[%clk 0:02:39]} 2...
d5 {[%clk 0:02:57.4]} 3. e5 {[%clk 0:02:36.8]} 3... c5 {[%clk 0:02:56.4]} 4. Nf3
{[%clk 0:02:35]} 4... Nc6 {[%clk 0:02:54.8]} 5. c4 {[%clk 0:02:28.6]} 5... cxd4
{[%clk 0:02:50.2]} 6. Nxd4 {[%clk 0:02:27.5]} 6... Nxe5 {[%clk 0:02:45.1]} 7.
cxd5 {[%clk 0:02:26.5]} 7... Qxd5 {[%clk 0:02:31.5]} 8. Nc3 {[%clk 0:02:26.3]}
8... Qd8 {[%clk 0:02:30.9]} 9. Bf4 {[%clk 0:02:25]} 9... Nc6 {[%clk 0:02:27.3]}
10. Ndb5 {[%clk 0:02:22.7]} 10... e5 {[%clk 0:02:25]} 11. Qxd8+ {[%clk
0:02:20.2]} 11... Kxd8 {[%clk 0:02:23.2]} 12. O-O-O+ {[%clk 0:02:16.7]} 12...
Bd7 {[%clk 0:02:22.6]} 13. Bg3 {[%clk 0:02:07.9]} 13... a6 {[%clk 0:02:21]} 14.
Nd6 {[%clk 0:01:59.5]} 14... Bxd6 {[%clk 0:02:20.1]} 15. Rxd6 {[%clk 0:02:00.4]}
15... Kc7 {[%clk 0:02:16.6]} 16. Rd1 {[%clk 0:01:52.8]} 16... Nge7 {[%clk
0:02:08.6]} 17. Bc4 {[%clk 0:01:50.3]} 17... f6 {[%clk 0:02:06.1]} 18. Ne4
{[%clk 0:01:46.8]} 18... Rhd8 {[%clk 0:01:47.8]} 19. Nc5 {[%clk 0:01:46.1]}
19... Bf5 {[%clk 0:01:40.1]} 20. f4 {[%clk 0:01:27.9]} 20... e4 {[%clk
0:01:39.4]} 21. Be6 {[%clk 0:01:24.7]} 21... Nd4 {[%clk 0:01:28.3]} 22. Bxf5
{[%clk 0:01:12.8]} 22... Nexf5 {[%clk 0:01:27.8]} 23. Nxe4 {[%clk 0:01:11.6]}
23... Rac8 {[%clk 0:01:10.8]} 24. Kb1 {[%clk 0:01:08.2]} 24... Kb8 {[%clk
0:01:02.9]} 25. Bf2 {[%clk 0:00:58]} 25... h5 {[%clk 0:01:01.9]} 26. h3 {[%clk
0:00:39]} 26... h4 {[%clk 0:01:01.4]} 27. Rd3 {[%clk 0:00:27]} 27... Ne2 {[%clk
0:00:59.8]} 28. Rxd8 {[%clk 0:00:14.9]} 28... Rxd8 {[%clk 0:01:00.7]} 29. a3
{[%clk 0:00:11.1]} 29... Nxf4 {[%clk 0:01:00.1]} 30. Bb6 {[%clk 0:00:06.3]}
30... Re8 {[%clk 0:00:53.2]} 31. Nc5 {[%clk 0:00:03.4]} 31... Nd5 {[%clk
0:00:42.3]} 0-1

[Event "Late-Titled-Tuesday-Blitz-May-07-2024"]
[Site "Chess.com"]
[Date "2024.05.07"]
[Round "10"]
[White "HaryKane"]
[Black "LeninGuerra"]
[Result "0-1"]
[WhiteElo "2540"]
[BlackElo "2658"]
[TimeControl "180+1"]
[EndTime "15:56:06 PDT"]
[Termination "LeninGuerra won on time"]

1. c4 {[%clk 0:03:00.9]} 1... e5 {[%clk 0:02:59.1]} 2. Nc3 {[%clk 0:02:58.1]}
2... Bc5 {[%clk 0:02:58.9]} 3. e3 {[%clk 0:02:55.8]} 3... a6 {[%clk 0:02:58.5]}
4. Nge2 {[%clk 0:02:54.6]} 4... d6 {[%clk 0:02:58.5]} 5. g3 {[%clk 0:02:47.1]}
5... Ba7 {[%clk 0:02:57.7]} 6. Bg2 {[%clk 0:02:45.1]} 6... Nf6 {[%clk
0:02:57.5]} 7. O-O {[%clk 0:02:44.8]} 7... O-O {[%clk 0:02:54.7]} 8. d4 {[%clk
0:02:45.4]} 8... Nbd7 {[%clk 0:02:54.4]} 9. b4 {[%clk 0:02:44]} 9... Re8 {[%clk
0:02:52.8]} 10. Rb1 {[%clk 0:02:43.7]} 10... Nf8 {[%clk 0:02:46.5]} 11. a4
{[%clk 0:02:42.5]} 11... Bf5 {[%clk 0:02:40.1]} 12. e4 {[%clk 0:02:33.5]} 12...
Be6 {[%clk 0:02:38]} 13. d5 {[%clk 0:02:31.4]} 13... Bd7 {[%clk 0:02:38.1]} 14.
a5 {[%clk 0:02:21.6]} 14... h6 {[%clk 0:02:29.5]} 15. Qd3 {[%clk 0:01:49]} 15...
N6h7 {[%clk 0:02:27.1]} 16. Be3 {[%clk 0:01:45.9]} 16... Bxe3 {[%clk 0:02:22.7]}
17. Qxe3 {[%clk 0:01:43.9]} 17... g5 {[%clk 0:02:17.7]} 18. c5 {[%clk
0:01:36.6]} 18... Ng6 {[%clk 0:02:14.3]} 19. Rfc1 {[%clk 0:01:30.5]} 19... Kg7
{[%clk 0:02:11.4]} 20. Na2 {[%clk 0:01:06.1]} 20... g4 {[%clk 0:02:08.6]} 21. c6
{[%clk 0:01:01.1]} 21... bxc6 {[%clk 0:02:09.5]} 22. dxc6 {[%clk 0:01:00.8]}
22... Be6 {[%clk 0:02:09.1]} 23. Nac3 {[%clk 0:01:00.4]} 23... Ng5 {[%clk
0:02:08.9]} 24. Nd5 {[%clk 0:00:54.8]} 24... Bxd5 {[%clk 0:02:00.2]} 25. exd5
{[%clk 0:00:51.3]} 25... f5 {[%clk 0:02:00.6]} 26. b5 {[%clk 0:00:51.3]} 26...
axb5 {[%clk 0:01:59.3]} 27. Rxb5 {[%clk 0:00:51.1]} 27... Qf6 {[%clk 0:01:36]}
28. Qc3 {[%clk 0:00:30.9]} 28... f4 {[%clk 0:01:28]} 29. gxf4 {[%clk 0:00:28.9]}
29... exf4 {[%clk 0:01:28.9]} 30. Qxf6+ {[%clk 0:00:28]} 30... Kxf6 {[%clk
0:01:29.8]} 31. Nd4 {[%clk 0:00:22.2]} 31... f3 {[%clk 0:01:29.8]} 32. Bf1
{[%clk 0:00:22.5]} 32... Nf4 {[%clk 0:01:26.8]} 33. Rb7 {[%clk 0:00:19.1]} 33...
Rxa5 {[%clk 0:01:07]} 34. Rxc7 {[%clk 0:00:18.5]} 34... Rxd5 {[%clk 0:01:07.6]}
35. Rd7 {[%clk 0:00:09.9]} 35... Rxd4 {[%clk 0:00:59.9]} 36. c7 {[%clk
0:00:10.4]} 36... Ngh3+ {[%clk 0:00:59.9]} 37. Bxh3 {[%clk 0:00:06.3]} 37...
Nxh3+ {[%clk 0:00:59.7]} 38. Kf1 {[%clk 0:00:06.2]} 38... Rd2 {[%clk 0:00:52.2]}
39. Rxd6+ {[%clk 0:00:03.1]} 39... Rxd6 {[%clk 0:00:50.8]} 0-1

[Event "Late-Titled-Tuesday-Blitz-May-07-2024"]
[Site "Chess.com"]
[Date "2024.05.07"]
[Round "10"]
[White "ReadySkate"]
[Black "Smiechu"]
[Result "1-0"]
[WhiteElo "2719"]
[BlackElo "2470"]
[TimeControl "180+1"]
[EndTime "15:56:09 PDT"]
[Termination "ReadySkate won by resignation"]

1. d4 {[%clk 0:03:00.9]} 1... Nf6 {[%clk 0:02:59.6]} 2. c4 {[%clk 0:03:00.9]}
2... c5 {[%clk 0:02:59.1]} 3. d5 {[%clk 0:03:00.9]} 3... e6 {[%clk 0:02:59.1]}
4. Nc3 {[%clk 0:03:00.5]} 4... exd5 {[%clk 0:02:59.1]} 5. cxd5 {[%clk
0:03:01.4]} 5... d6 {[%clk 0:02:59.7]} 6. e4 {[%clk 0:03:02]} 6... g6 {[%clk
0:02:59.2]} 7. f4 {[%clk 0:03:02.4]} 7... Bg7 {[%clk 0:02:58.9]} 8. Bb5+ {[%clk
0:03:03]} 8... Nfd7 {[%clk 0:02:58.8]} 9. Nf3 {[%clk 0:03:03.1]} 9... O-O {[%clk
0:02:58.7]} 10. O-O {[%clk 0:03:03.6]} 10... a6 {[%clk 0:02:56.2]} 11. Bd3
{[%clk 0:03:04]} 11... Nf6 {[%clk 0:02:55.6]} 12. Kh1 {[%clk 0:03:01.4]} 12...
Bg4 {[%clk 0:02:54]} 13. h3 {[%clk 0:03:00.6]} 13... Bxf3 {[%clk 0:02:53.8]} 14.
Qxf3 {[%clk 0:03:01.5]} 14... Nbd7 {[%clk 0:02:54]} 15. Bd2 {[%clk 0:02:59.4]}
15... Re8 {[%clk 0:02:50.5]} 16. Rae1 {[%clk 0:02:59.6]} 16... b5 {[%clk
0:02:38]} 17. Bc1 {[%clk 0:02:50.7]} 17... c4 {[%clk 0:02:37.8]} 18. Bc2 {[%clk
0:02:50.2]} 18... b4 {[%clk 0:02:34.8]} 19. Ne2 {[%clk 0:02:48.9]} 19... Nc5
{[%clk 0:02:32.6]} 20. Nd4 {[%clk 0:02:46.5]} 20... Nh5 {[%clk 0:01:58]} 21. e5
{[%clk 0:02:39.7]} 21... Qh4 {[%clk 0:01:46]} 22. Kh2 {[%clk 0:02:23.8]} 22...
dxe5 {[%clk 0:01:45.6]} 23. Nc6 {[%clk 0:02:14.1]} 23... exf4 {[%clk 0:01:35.7]}
24. Rxe8+ {[%clk 0:02:11.2]} 24... Rxe8 {[%clk 0:01:34.8]} 25. Bxf4 {[%clk
0:02:05.6]} 25... b3 {[%clk 0:01:12.3]} 26. axb3 {[%clk 0:01:56.5]} 26... cxb3
{[%clk 0:01:12.3]} 27. Bd6 {[%clk 0:01:41.1]} 27... Qf6 {[%clk 0:00:26.2]} 28.
Qxf6 {[%clk 0:01:25.7]} 28... Bxf6 {[%clk 0:00:26]} 29. Bd1 {[%clk 0:01:01.9]}
29... Ne4 {[%clk 0:00:23]} 30. Bxh5 {[%clk 0:01:00.1]} 30... Nxd6 {[%clk
0:00:21.8]} 31. Rxf6 {[%clk 0:00:57.5]} 31... Ne4 {[%clk 0:00:22]} 32. Rf4
{[%clk 0:00:53.2]} 32... gxh5 {[%clk 0:00:21.9]} 33. Rxe4 {[%clk 0:00:47.9]}
33... Rxe4 {[%clk 0:00:20.5]} 34. d6 {[%clk 0:00:48.6]} 34... Re8 {[%clk
0:00:12]} 35. d7 {[%clk 0:00:48.4]} 35... Kf8 {[%clk 0:00:12.7]} 36. dxe8=Q+
{[%clk 0:00:47.5]} 36... Kxe8 {[%clk 0:00:13.2]} 37. Na5 {[%clk 0:00:47.7]}
37... Kd7 {[%clk 0:00:12.7]} 38. Nxb3 {[%clk 0:00:48.4]} 38... Kc6 {[%clk
0:00:13.1]} 39. Kg3 {[%clk 0:00:47.2]} 39... Kb5 {[%clk 0:00:13.6]} 40. Kf4
{[%clk 0:00:46.7]} 40... Kb4 {[%clk 0:00:14.2]} 41. Nc1 {[%clk 0:00:47.2]} 1-0

[Event "Late-Titled-Tuesday-Blitz-May-07-2024"]
[Site "Chess.com"]
[Date "2024.05.07"]
[Round "10"]
[White "MarkusRagger"]
[Black "DominguezOnYoutube"]
[Result "0-1"]
[WhiteElo "2824"]
[BlackElo "3025"]
[TimeControl "180+1"]
[EndTime "15:56:10 PDT"]
[Termination "DominguezOnYoutube won by resignation"]

1. d4 {[%clk 0:03:00.9]} 1... Nf6 {[%clk 0:02:59.5]} 2. c4 {[%clk 0:03:00.7]}
2... e6 {[%clk 0:02:58.8]} 3. Nf3 {[%clk 0:03:01]} 3... d5 {[%clk 0:02:58.3]} 4.
g3 {[%clk 0:03:01.5]} 4... Be7 {[%clk 0:02:56]} 5. Bg2 {[%clk 0:03:00.8]} 5...
O-O {[%clk 0:02:56.7]} 6. O-O {[%clk 0:03:01.2]} 6... dxc4 {[%clk 0:02:57.2]} 7.
Qc2 {[%clk 0:03:01.6]} 7... a6 {[%clk 0:02:57.3]} 8. a4 {[%clk 0:03:01.8]} 8...
Bd7 {[%clk 0:02:56.8]} 9. Qxc4 {[%clk 0:03:01.9]} 9... Bc6 {[%clk 0:02:57.1]}
10. Bf4 {[%clk 0:02:49.7]} 10... Bd6 {[%clk 0:02:51.5]} 11. Bg5 {[%clk
0:02:44.8]} 11... Nbd7 {[%clk 0:02:50.9]} 12. Nc3 {[%clk 0:02:43.8]} 12... h6
{[%clk 0:02:51.4]} 13. Bxf6 {[%clk 0:02:43.3]} 13... Nxf6 {[%clk 0:02:52.3]} 14.
Nd2 {[%clk 0:02:43.3]} 14... Bxg2 {[%clk 0:02:47.8]} 15. Kxg2 {[%clk 0:02:43.9]}
15... Qe7 {[%clk 0:02:43.3]} 16. Nde4 {[%clk 0:02:42.5]} 16... Nxe4 {[%clk
0:02:41.2]} 17. Nxe4 {[%clk 0:02:43.4]} 17... Rad8 {[%clk 0:02:36.4]} 18. Rac1
{[%clk 0:02:42.2]} 18... c6 {[%clk 0:02:34.8]} 19. Rfd1 {[%clk 0:02:42.1]} 19...
f5 {[%clk 0:02:26.1]} 20. Nxd6 {[%clk 0:02:28]} 20... Rxd6 {[%clk 0:02:14.9]}
21. e3 {[%clk 0:02:24.4]} 21... Rd5 {[%clk 0:02:12.2]} 22. Qb3 {[%clk
0:02:22.6]} 22... Kh7 {[%clk 0:02:02.6]} 23. Rd3 {[%clk 0:02:19.4]} 23... Rfd8
{[%clk 0:01:59.9]} 24. Rdc3 {[%clk 0:01:54.8]} 24... e5 {[%clk 0:01:53.8]} 25.
dxe5 {[%clk 0:01:54.9]} 25... Qxe5 {[%clk 0:01:47.6]} 26. Qxb7 {[%clk
0:01:24.4]} 26... Qe4+ {[%clk 0:01:42.7]} 27. Kh3 {[%clk 0:01:23.6]} 27... f4
{[%clk 0:01:11.1]} 28. Rc5 {[%clk 0:01:06.3]} 28... Qf5+ {[%clk 0:00:43.9]} 29.
g4 {[%clk 0:01:02.9]} 29... Qe4 {[%clk 0:00:44.3]} 30. Rxd5 {[%clk 0:00:41.5]}
30... Qf3+ {[%clk 0:00:41.9]} 31. Kh4 {[%clk 0:00:40.6]} 31... Qxf2+ {[%clk
0:00:42.2]} 32. Kh3 {[%clk 0:00:39.4]} 32... Qxe3+ {[%clk 0:00:39.7]} 33. Kh4
{[%clk 0:00:40]} 33... Rxd5 {[%clk 0:00:27.6]} 34. Rc3 {[%clk 0:00:20.6]} 34...
Qf2+ {[%clk 0:00:21.5]} 35. Kh3 {[%clk 0:00:20.9]} 35... Rd2 {[%clk 0:00:16]}
0-1

[Event "Late-Titled-Tuesday-Blitz-May-07-2024"]
[Site "Chess.com"]
[Date "2024.05.07"]
[Round "10"]
[White "ContrVersia"]
[Black "LikeWater"]
[Result "1-0"]
[WhiteElo "2915"]
[BlackElo "2716"]
[TimeControl "180+1"]
[EndTime "15:56:13 PDT"]
[Termination "ContrVersia won by checkmate"]

1. e4 {[%clk 0:02:57.3]} 1... e5 {[%clk 0:02:09.8]} 2. Nf3 {[%clk 0:02:56.6]}
2... d6 {[%clk 0:02:09.2]} 3. d3 {[%clk 0:02:56.4]} 3... g6 {[%clk 0:02:08.7]}
4. g3 {[%clk 0:02:56.1]} 4... Bg7 {[%clk 0:02:09.1]} 5. Bg2 {[%clk 0:02:57]}
5... Ne7 {[%clk 0:02:09.5]} 6. O-O {[%clk 0:02:57.8]} 6... O-O {[%clk
0:02:09.9]} 7. d4 {[%clk 0:02:58]} 7... Nbc6 {[%clk 0:02:06.7]} 8. d5 {[%clk
0:02:54.6]} 8... Nb8 {[%clk 0:02:06.8]} 9. c4 {[%clk 0:02:54.7]} 9... h6 {[%clk
0:02:06.8]} 10. Nc3 {[%clk 0:02:54.8]} 10... f5 {[%clk 0:02:06.9]} 11. c5 {[%clk
0:02:55.1]} 11... dxc5 {[%clk 0:01:56.6]} 12. Re1 {[%clk 0:02:55.3]} 12... f4
{[%clk 0:01:55.3]} 13. gxf4 {[%clk 0:02:51.2]} 13... Bg4 {[%clk 0:01:46.9]} 14.
Qb3 {[%clk 0:02:50.9]} 14... Bxf3 {[%clk 0:01:31.5]} 15. d6+ {[%clk 0:02:44.8]}
15... Kh7 {[%clk 0:01:30.1]} 16. dxe7 {[%clk 0:02:44.9]} 16... Qxe7 {[%clk
0:01:31]} 17. Bxf3 {[%clk 0:02:44.9]} 17... Nc6 {[%clk 0:01:30.3]} 18. Be3
{[%clk 0:02:35.2]} 18... exf4 {[%clk 0:01:28.9]} 19. Bc1 {[%clk 0:02:00.9]}
19... Nd4 {[%clk 0:01:23]} 20. Qd1 {[%clk 0:02:01]} 20... Qg5+ {[%clk
0:01:13.5]} 21. Kh1 {[%clk 0:02:00.7]} 21... Qh4 {[%clk 0:01:14.1]} 22. e5
{[%clk 0:01:26.8]} 22... Rf5 {[%clk 0:00:58.9]} 23. e6 {[%clk 0:01:13.7]} 23...
Rg5 {[%clk 0:00:18.1]} 24. e7 {[%clk 0:01:03.6]} 24... Qh3 {[%clk 0:00:10.8]}
25. Bxb7 {[%clk 0:00:41.8]} 25... f3 {[%clk 0:00:08.2]} 26. Rg1 {[%clk
0:00:41.8]} 26... Rg2 {[%clk 0:00:08.4]} 27. Bf4 {[%clk 0:00:41.1]} 27... Rb8
{[%clk 0:00:03.6]} 28. Be4 {[%clk 0:00:35.7]} 28... Rxb2 {[%clk 0:00:03.3]} 29.
e8=Q {[%clk 0:00:26.3]} 29... Rbxf2 {[%clk 0:00:02.1]} 30. Bxg6+ {[%clk
0:00:25.4]} 30... Rxg6 {[%clk 0:00:01.8]} 31. Qxg6+ {[%clk 0:00:25.2]} 31... Kh8
{[%clk 0:00:02.3]} 32. Qxg7# {[%clk 0:00:25.4]} 1-0